Cogmind - Beta 9.6 @@@ ROGUE MODE // 2020.05.18 @ 15:56:16 Player: Vectis Result: Destroyed by S-10 Pest with Light Assault Rifle Performance ------------- Evolutions (1) 500 Regions Visited (4) 800 Robots Destroyed (14) 70 Value Destroyed (347) 347 Prototype IDs (0) 0 Alien Tech Used (0) 0 Bonus (0) 0 TOTAL SCORE: 1717 Bonus ------- None Cogmind --------- Core Integrity 0/400 Matter 300/300 Energy 96/100 System Corruption 0% Temperature Cool (2) Movement Walking (120) Location -9/Mines Parts ------- > --- POWER (1) -------- (None) > --- PROPULSION (2) --- Aluminum Leg Aluminum Leg > --- UTILITY (4) ------ Small Storage Unit Visual Processing Unit Targeting Computer > --- WEAPON (2) ------- Mining Claw > --- INVENTORY (6) ---- Ion Engine Aluminum Leg Aluminum Leg Large Storage Unit Medium Matter Pod (96) Autogun Peak State ------------ > --- POWER ------------ Light Ion Engine > --- PROPULSION ------- Hover Unit Hover Unit > --- UTILITY ---------- Small Storage Unit Visual Processing Unit Targeting Computer > --- WEAPON ----------- Grenade Launcher Mining Claw > --- INVENTORY -------- Ion Engine Light Treads Light Treads Large Storage Unit Medium Matter Pod Assault Rifle [Rating: 9] Favorites ----------- Power Light Ion Engine Engine Light Ion Engine Propulsion Hover Unit Treads Light Treads Leg Aluminum Leg Hover Unit Hover Unit Utility Small Storage Unit Device Heat Sink Storage Small Storage Unit Processor Visual Processing Unit Protection Core Shielding Weapon Grenade Launcher Ballistic Gun Assault Rifle Launcher Grenade Launcher Slashing Weapon Mining Claw Build | -11 -10 -10 -9 -9 ------- Run | Scr Mat Min Mat Min Slots Evolved 2 | . . . 2 . Power . | . . . . . Propulsion . | . . . . . Utility 2 | . . . 2 . Weapon . | . . . . . Parts Attached 21 | 7 9 . 1 4 Power 3 | 2 1 . . . Engine 3 | 2 1 . . . Core . | . . . . . Reactor . | . . . . . Propulsion 8 | 2 2 . . 4 Treads 2 | . . . . 2 Leg 4 | 2 . . . 2 Wheel . | . . . . . Hover 2 | . 2 . . . Flight . | . . . . . Utility 5 | 1 3 . 1 . Device 1 | . 1 . . . Storage 1 | 1 . . . . Processor 2 | . 1 . 1 . Hackware . | . . . . . Protection 1 | . 1 . . . Artifact . | . . . . . Weapon 5 | 2 3 . . . Energy Gun . | . . . . . Energy Cannon . | . . . . . Ballistic Gun 3 | 2 1 . . . Ballistic Cannon . | . . . . . Launcher 1 | . 1 . . . Special Weapon . | . . . . . Impact Weapon . | . . . . . Slashing Weapon 1 | . 1 . . . Piercing Weapon . | . . . . . Special Melee Weapon . | . . . . . Unidentified Prototypes . | . . . . . Parts Lost 5 | . . . . 5 Power 1 | . . . . 1 Propulsion 3 | . . . . 3 Utility . | . . . . . Weapon 1 | . . . . 1 Highest Loss Streak 5 | . . . . 5 Average Slot Usage (%) 88 | . 95 100 84 79 Engine 11 | . 14 14 11 8 Leg 6 | . 18 . . 1 Hover 16 | . 9 28 22 15 Device 1 | . 5 . . . Storage 12 | . 14 14 11 11 Processor 14 | . 4 14 18 22 Ballistic Gun 4 | . 13 . . . Launcher 10 | . 11 14 11 7 Slashing Weapon 8 | . 1 14 11 11 Naked Turns . | . . . . . Heaviest Build 15 | 12 15 12 12 12 Greatest Support 20 | 20 20 12 12 20 Greatest Overweight (x) 1 | . 1 . . 1 Average Overweight (x) . | . . . . . Largest Inventory Capacity 6 | 6 6 6 6 6 Average Capacity 5 | 5 6 6 6 6 Most Carried 6 | 4 6 6 6 6 Average Carried 5 | 2 5 6 6 5 Final Capacity 6 | 6 6 6 6 6 Final Carried 6 | 4 6 6 6 6 Class Distribution -------------------- 100% | Mutant Dominant Class ---------------- Mutant | -10/Materials Mutant | -10/Mines Mutant | -9/Materials Mutant | -9/Mines Resources | -11 -10 -10 -9 -9 ----------- Run | Scr Mat Min Mat Min Matter Collected 529 | 231 25 64 44 165 Remotely . | . . . . . Salvage Created 400 | . 53 . 82 265 Parts 32 | . 8 . 7 17 Haulers Intercepted . | . . . . . Recyclers Shooed . | . . . . . Parts Field Recycled . | . . . . . Retrieved Matter . | . . . . . Parts Self-Destructed . | . . . . . Prevented . | . . . . . Kills | -11 -10 -10 -9 -9 ------- Run | Scr Mat Min Mat Min Combat Hostiles Destroyed 12 | . 3 . 2 7 Melee 9 | . . . 2 7 AOE 3 | . 3 . . . Classes Destroyed 5 | . 3 . 1 1 Operator 1 | . 1 . . . Watcher 1 | . 1 . . . Swarmer 3 | . 3 . . . Grunt 8 | . . . 2 6 Assembled 1 | . . . . 1 Best Kill Streak 4 | . 3 . 1 4 Combat Bots Only 4 | . 3 . 1 4 Max Kills in Single Turn 2 | . 2 . 1 1 Gunslinging . | . . . . . Exploded 2 | . 2 . . . Melee 1 | . . . 1 1 Uniques/NPCs Destroyed . | . . . . . Combat | -11 -10 -10 -9 -9 -------- Run | Scr Mat Min Mat Min Damage Taken 1028 | . 89 . 164 775 Core 425 | . 18 . 73 334 Absorbed by Shields . | . . . . . Core Remaining (%) 96 | 100 . 92 . . Volleys Fired 6 | . 6 . . . Largest 2 | . 2 . . . Hottest 50 | . 50 . . . Shots Fired 9 | . 9 . . . Gun 6 | . 6 . . . Cannon . | . . . . . Launcher 3 | . 3 . . . Special . | . . . . . Kinetic 6 | . 6 . . . Thermal . | . . . . . Explosive 3 | . 3 . . . Electromagnetic . | . . . . . Robot Hit Streak 4 | . 4 . . . Robot Miss Streak 1 | . 1 . . . Penetration Max . | . . . . . Secondary Targets . | . . . . . Shots Hit Robots 30 | . 6 . 9 15 Core Hits 15 | . 5 . 2 8 Critical Hits . | . . . . . Critical Kills . | . . . . . Critical Parts Destroyed . | . . . . . Melee Attacks 81 | . 1 . 48 32 Impact . | . . . . . Slashing 81 | . 1 . 48 32 Piercing . | . . . . . Sneak Attacks 1 | . . . 1 . Combat Hostiles . | . . . . . Follow-up Attacks . | . . . . . Damage Inflicted 793 | . 193 . 267 333 Guns 67 | . 67 . . . Cannons . | . . . . . Explosions 126 | . 126 . . . Melee 600 | . . . 267 333 Ramming . | . . . . . Kinetic 67 | . 67 . . . Thermal . | . . . . . Explosive 126 | . 126 . . . Electromagnetic . | . . . . . Impact . | . . . . . Slashing 600 | . . . 267 333 Piercing . | . . . . . Highest Corruption . | . . . . . Average Corruption . | . . . . . Corruption Purged . | . . . . . Overload Shots . | . . . . . Overflow Damage 43 | . . . 43 . Projectiles . | . . . . . Explosions . | . . . . . Melee 43 | . . . 43 . Knockbacks . | . . . . . Impact . | . . . . . Kinetic . | . . . . . Secondary . | . . . . . Self-Inflicted Damage . | . . . . . Shots . | . . . . . Rammed . | . . . . . Targets Rammed . | . . . . . Kicked . | . . . . . Crushed . | . . . . . Highest Temperature . | . . . . . Average Temperature . | . . . . . Received Heat Transfer 507 | . . . 87 420 Siege Activations . | . . . . . Robots Corrupted . | . . . . . Combat Hostiles . | . . . . . Parts Fried . | . . . . . Impact Corruptions . | . . . . . Robots Melted . | . . . . . Combat Hostiles . | . . . . . Parts Melted . | . . . . . Heat Transferred . | . . . . . Parts Sabotaged . | . . . . . Parts Stolen . | . . . . . Parts Stripped . | . . . . . Power Chain Reactions . | . . . . . Missiles Intercepted . | . . . . . Alert | -11 -10 -10 -9 -9 ------- Run | Scr Mat Min Mat Min Peak Influence 127 | . 127 49 91 115 Average Influence 48 | . 67 49 40 48 Maximum Alert Level . | . . . . . Low Security (%) 100 | 100 100 100 100 100 Level 1 . | . . . . . Level 2 . | . . . . . Level 3 . | . . . . . Level 4 . | . . . . . Level 5 . | . . . . . High Security . | . . . . . Max Security . | . . . . . Squads Dispatched 1 | . 1 . . . Investigation . | . . . . . Extermination . | . . . . . Reinforcement 1 | . 1 . . . Assault . | . . . . . Garrison . | . . . . . Intercept . | . . . . . Construction Impeded . | . . . . . Haulers Reinforced . | . . . . . Stealth | -11 -10 -10 -9 -9 --------- Run | Scr Mat Min Mat Min Distress Signals 1 | . . . 1 . Communications Jammed . | . . . . . Distress Signals . | . . . . . Times Spotted 28 | . 5 . 12 11 Peak Tracking Total 8 | . 3 . 8 4 Tactical Retreats 3 | . . . 3 . Traps | -11 -10 -10 -9 -9 ------- Run | Scr Mat Min Mat Min Traps Triggered . | . . . . . Indirectly . | . . . . . Trap Hack Attempts . | . . . . . Triggered . | . . . . . Disarmed . | . . . . . Reprogrammed . | . . . . . Reused . | . . . . . Traps Extracted . | . . . . . Installed . | . . . . . Triggered . | . . . . . Machines | -11 -10 -10 -9 -9 ---------- Run | Scr Mat Min Mat Min Machines Disabled 1 | . . . 1 . Max in Single Turn 1 | . . . 1 . Machines Sabotaged . | . . . . . Garrisons Compromised . | . . . . . Overloaded Fab Kills . | . . . . . Fab Network Shutdowns . | . . . . . Hacking | -11 -10 -10 -9 -9 --------- Run | Scr Mat Min Mat Min Machines Accessed 3 | . 1 . 2 . Terminals 3 | . 1 . 2 . Fabricators . | . . . . . Repair Stations . | . . . . . Recycling Units . | . . . . . Scanalyzers . | . . . . . Garrison Access . | . . . . . Total Hacks 7 | . 2 . 5 . Successful 2 | . . . 2 . Failed 5 | . 2 . 3 . Catastrophic 2 | . 2 . . . Database Lockouts . | . . . . . Manual 7 | . 2 . 5 . Terminals 7 | . 2 . 5 . Fabricators . | . . . . . Repair Stations . | . . . . . Recycling Units . | . . . . . Scanalyzers . | . . . . . Garrison Access . | . . . . . Terminal Hacks . | . . . . . Fabricator Hacks . | . . . . . Repair Station Hacks . | . . . . . Recycling Unit Hacks . | . . . . . Scanalyzer . | . . . . . Garrison Access Hacks . | . . . . . Unauthorized Hacks 2 | . . . 2 . Terminals 2 | . . . 2 . Track 1 | . . . 1 . Botnet 1 | . . . 1 . Fabricators . | . . . . . Repair Stations . | . . . . . Recycling Units . | . . . . . Scanalyzers . | . . . . . Garrison Access . | . . . . . Data Cores Recovered . | . . . . . Used . | . . . . . Hacking Detections 3 | . 1 . 2 . Full Trace Events . | . . . . . Feedback Events . | . . . . . Feedback Blocked . | . . . . . Robot Schematics Acquired . | . . . . . Robots Built . | . . . . . Matter . | . . . . . Time . | . . . . . Total Robot Build Rating . | . . . . . Part Schematics Acquired . | . . . . . Parts Built . | . . . . . Matter . | . . . . . Time . | . . . . . Total Part Build Rating . | . . . . . Parts Repaired . | . . . . . Time . | . . . . . Parts Recycled . | . . . . . Recycled Matter . | . . . . . Retrieved Matter . | . . . . . Retrieved Components . | . . . . . Parts Scanalyzed . | . . . . . Part Schematics Acquired . | . . . . . Parts Damaged . | . . . . . Bothacking | -11 -10 -10 -9 -9 ------------ Run | Scr Mat Min Mat Min Used RIF Installer . | . . . . . Robots Hacked . | . . . . . Non-combat . | . . . . . Combat . | . . . . . Robot Hacks Applied . | . . . . . Relay Couplers Released . | . . . . . Robots Rewired . | . . . . . Allies Hacked . | . . . . . Hacks Repelled . | . . . . . Allies | -11 -10 -10 -9 -9 -------- Run | Scr Mat Min Mat Min Total Allies . | . . . . . Largest Group . | . . . . . Highest-Rated Group . | . . . . . Highest-Rated Ally . | . . . . . Total Orders . | . . . . . Ally Attacks . | . . . . . Total Damage . | . . . . . Kills . | . . . . . Allies Corrupted . | . . . . . Allies Melted . | . . . . . Intel | -11 -10 -10 -9 -9 ------- Run | Scr Mat Min Mat Min Robot Analysis Total . | . . . . . Derelict Logs Recovered 3 | . . 3 . . Drone Launches . | . . . . . Drone Recoveries . | . . . . . Exploration | -11 -10 -10 -9 -9 ------------- Run | Scr Mat Min Mat Min Turns Passed 1093 | 77 330 93 332 261 Spaces Moved 1071 | 49 336 167 294 225 Core 11 | 10 . . . 1 Treads 9 | . . . . 9 Legs 212 | 39 159 . . 14 Wheels . | . . . . . Hover 839 | . 177 167 294 201 Flight . | . . . . . Fastest Speed 50 | 50 56 56 56 56 Average Speed 69 | 105 86 56 56 64 Slowest Speed 160 | 120 150 56 56 160 Overloaded Moves . | . . . . . Propulsion Burnouts . | . . . . . Robots Hopped . | . . . . . Cave-ins Triggered . | . . . . . Exploration Rate (%) 35 | 4 56 44 25 47 Regions Visited 4 Branch Regions 2 Pre-discovered Areas . | . . . . . Known Exits Taken . | . . . . . Unknown Exits Taken 4 | 1 1 1 1 . Scrap Searched 3 | . . 2 . 1 Spaces Dug 26 | . 1 . 23 2 Terrain Destroyed 45 | . 20 . 23 2 Melee 26 | . 1 . 23 2 Projectile . | . . . . . AOE 19 | . 19 . . . Actions | -11 -10 -10 -9 -9 --------- Run | Scr Mat Min Mat Min Total 1242 | 70 364 166 365 277 Wait 46 | 11 2 . 19 14 Move 1067 | 48 335 166 293 225 Hop . | . . . . . Pick Up 10 | 4 3 . 2 1 Fast Attach 15 | 6 6 . 1 2 Attach 3 | . 1 . . 2 Detach 1 | . 1 . . . Swap 3 | 1 2 . . . Drop 10 | . 7 . 2 1 Fire 6 | . 6 . . . Melee 81 | . 1 . 48 32 Ram . | . . . . . Kick . | . . . . . Crush . | . . . . . Escape Stasis . | . . . . . Rewire . | . . . . . Trap . | . . . . . Miscellaneous . | . . . . . Route ------- -11/Scrapyard -10/Materials (discovered 3 exits: *Mat x2 / [*Min]) -10/Mines -9/Materials (discovered 2 exits: [*Min x2]) -9/Mines History --------- Turn | Location | Event 9 | -11/Scrapyard | Discovered new exit (range 15) 78 | -11/Scrapyard | Entered Materials 290 | -10/Materials | Discovered new exit (range 5) 308 | -10/Materials | Discovered new exit (range 15) 339 | -10/Materials | Build established: Mutant 361 | -10/Materials | Discovered new exit (range 13) 408 | -10/Materials | Entered Mines 434 | -10/Mines | Learned Materials stockpile data 450 | -10/Mines | Learned Materials terminal intel 466 | -10/Mines | Received a Rocket Launcher from a helpful Derelict 494 | -10/Mines | Discovered new exit (range 14) 495 | -10/Mines | Learned 4 Materials zone layouts 501 | -10/Mines | Entered Materials 501 | -9/Materials | Evolved 2 slots: Utility x2 504 | -9/Materials | Loaded intel: 12 terminal locations 819 | -9/Materials | Discovered new exit (range 7) 830 | -9/Materials | Discovered new exit (range 13) 833 | -9/Materials | Entered Mines 937 | -9/Mines | Excavation squad dispatched 937 | -9/Mines | A large section of the Mines collapsed 1040 | -9/Mines | Core integrity fell below 50% 1053 | -9/Mines | Core integrity fell below 20% 1068 | -9/Mines | Lost 5 parts (1p3n1w) 1094 | -9/Mines | Destroyed by S-10 Pest with Light Assault Rifle Last Messages --------------- 01050_ K-01 Serf collects debris. 01055_ Aluminum Leg ripped off. 01056_ K-01 Serf collects debris. 01058_ U-05 Engineer lays Concrete. 01059_ K-01 Serf collects debris. 01059_ K-01 Serf destroyed. 01063_ G-34 Mercenary destroyed. 01063_ K-01 Serf collects debris. 01067_ Acquired Aluminum Leg. 01069_ K-01 Serf collects debris. 01077_ G-34 Mercenary destroyed. 01079_ K-01 Serf collects debris. 01081_ Dropped Lgt. Treads. 01081_ Acquired Aluminum Leg. 01083_ K-01 Serf collects debris. 01083_ Acquired 39 matter. 01085_ Acquired Aluminum Leg. 01086_ K-01 Serf collects debris. 01094_ C-30 ARC bursts open, deploying its payload. 01094_ S-10 Pest unfolds itself. Map ----- +----------------------------------------------------+ | ?????????????????????????????????????????????????? | | ?????????????????????????????????????????????????? | | ?????????????????????????????????##??????????????? | | ?????????????????????????????????# ##????????????? | | ?????????????????????????????????## ###??????????? | | ????????????????????????????????##### ##?????????? | | ????????????????????????????????# # # #?????????# | | ????????????????????????????????# # # #????????## | | ????????????????????????????????### # ##????????# | | ?????????????????????????????????## ###?????????# | | ??????????????????????????????????# ##??????????## | | ??????????????????????????????????# #????????????# | | ??????????????????????????????????# #????????????# | | ??????????????????????????????????# #????????????# | | ??????????????????????????????????# #????????????# | | ??????????????????????????????????# #???###??????# | | ????????????????????????????????### #??## ##????# | | ????????????????????????????????# ##??# ##???# | | ????????????????????????????????# ###??# #???# | | ????????????????????????????????# #????# ##??? | | ????????????????????????????????# #????# ##?? | | ????????????????????????????????# #????# ##? | | ????????????????????????????????# #?????# #? | | ????????????????????????????????# #??????# """ #? | | ????????????????## ##########???# #???????# """ ## | | ????????# @ #???# #???????# """ # | | ????????????????########## #???# #??????## | | ?????????????????????????# #???# #??????# | | ????????????????????????## *##??# ######## | | ???????????????????????## = ##?# ## | | ???????????????????????# s%### ## ###### ##### | | ???????????????????????# sss % #????####???# | | ???????????????????????# #??????????## | | ???????????????????????# * #####??????????# | | ???????????????????????# ! r ##?????????????# | | ???????????????????????## =%r ###???????????# | | ????????????????????????# =%= #???????????# | | ????????????????????????#=% = #?????????## | | ????????????????????????# [ ### #???????## | | ???????????????????????# #??# #??????# | | ??????????????????????# #???# #?????## | | ??????????????????????# #???? #????## | | ??????????????????????# #???? #????# | | ??????????????????????## ????? #???# # | | ???????????????????????## ?????# ??## ## | | ????????????????????????#### ##????? ??# #? | | ???????????????????????????# ##??????? #?# #? | | ???????????????????????????# #????????? ##?# #? | | ???????????????????????????# #???????????????# #? | | ??????????????????????????? #???????????????# #? | +----------------------------------------------------+ Best States ------------- Heat Dissipation 35 Energy Generation 10 Energy Capacity 250 Matter Stores 300 Matter Capacity 300 Sight Range 18 Terrain Scan Density 10 Core Shielding 20 Evasion (%) 53 Targeting Accuracy 5 Recoil Reduction 1 Item Schematics ----------------- None Robot Schematics ------------------ None Fabricated ------------ Nothing Alien Tech Used ----------------- None Achievements -------------- None Challenges ------------ None Game ------ Seed BiocellChargeRegenerator Manual? 0 Play Time 00:13:07 Cumulative 43.6 hours Start 2020.05.18 @ 15:45:17 End 2020.05.18 @ 15:56:16 Sessions 1 Manual Loads 0 Difficulty Rogue Special Mode None Game No. 23 Rogue 23 Adventurer 0 Explorer 0 Win Type - Total 3 Types 2/0/0/1/0/0/0 Lore% 50 Gallery% 50 Achievement% 45 Wizard Run 0 Options --------- ASCII 1 Keyboard 0 Movement Numpad Keybinds 0 Fullscreen 1 Font 18/SmallcapsGlow Map View 76x50 Tactical HUD 1 Map Filters NONE Filters NONE Steam 1 RUN: ae921117-223f-4cac-a760-8e413ce1f24e